fUST/lending_fUST_20260202
["ID","MTS","AMOUNT","RATE_DAILY","PERIOD"]
[404238720,1769991033994,-605.6366676,0.00036866,2]
[404238721,1769991034003,-500.0,0.00036866,14]
[404238722,1769991034012,-500.0,0.00036866,14]
[404238723,1769991034021,-500.0,0.00036866,14]
[404238724,1769991034030,-351.18334562,0.00036866,14]
[404238725,1769991034040,-605.6366676,0.00036866,2]
[404238726,1769991034049,-605.5062385,0.00036866,2]
[404238727,1769991034059,-605.6366676,0.00036866,2]
[404238728,1769991034068,-605.6366676,0.00036866,2]
[404238729,1769991034077,-604.1333812,0.00036866,2]
[404238730,1769991034086,-605.5062385,0.00036866,2]
[404238731,1769991034095,-600.0148093,0.00036866,2]
[404238732,1769991034104,-605.6366676,0.00036866,2]
[404238733,1769991034113,-605.6366676,0.00036866,2]
[404238734,1769991034123,-250.0,0.00036866,10]
[404238735,1769991034133,-351.546189,0.00036866,10]
[404238736,1769991034142,-605.6366676,0.00036866,2]
[404238737,1769991034152,-616.9839976,0.00036866,2]
[404238738,1769991034161,-605.6366676,0.00036866,2]
[404238739,1769991034170,-1206.3986822,0.00036866,2]
[404238740,1769991034179,-587.75,0.00036866,3]
[404238741,1769991034188,-587.75,0.00036866,3]
[404238742,1769991034197,-587.75,0.00036866,3]
[404238743,1769991034206,-587.75,0.00036866,3]
[404238744,1769991034215,-587.75,0.00036866,3]
[404238745,1769991034224,-587.75,0.00036866,3]
[404238746,1769991034233,-587.75,0.00036866,3]
[404238747,1769991034243,-587.75,0.00036866,3]
[404238748,1769991034252,-587.75,0.00036866,3]
[404238749,1769991034261,-587.75,0.00036866,3]
[404238750,1769991034270,-587.75,0.00036866,3]
[404238751,1769991034279,-587.75,0.00036866,3]
[404238752,1769991034289,-587.75,0.00036866,3]
[404238753,1769991034298,-587.75,0.00036866,3]
[404238754,1769991034308,-587.75,0.00036866,3]
[404238755,1769991034317,-587.75,0.00036866,3]
[404238756,1769991034326,-587.75,0.00036866,3]
[404238757,1769991034335,-587.75,0.00036866,3]
[404238758,1769991034345,-587.75,0.00036866,3]
[404238759,1769991034354,-587.75,0.00036866,3]
[404238760,1769991034369,-587.75,0.00036866,3]
[404238761,1769991034380,-587.75,0.00036866,3]
[404238762,1769991034389,-587.75,0.00036866,3]
[404238763,1769991034398,-587.98338729,0.00036866,3]
[404238764,1769991034407,-605.6366676,0.00036866,2]
[404238765,1769991034416,-605.6366676,0.00036866,2]
[404238766,1769991034424,-605.6366676,0.00036866,2]
[404238767,1769991034432,-400.14835185,0.00036866,2]
[404238790,1769991040881,-2e-08,0.00036865,120]
[404238797,1769991051001,-5000.0,0.00036497,2]
[404238798,1769991051011,-989.99999998,0.00036865,120]
[404238799,1769991051021,-205.48831575,0.00036866,2]
[404238800,1769991051031,-579.16552681,0.00036866,14]
[404238801,1769991051041,-605.6366676,0.00036866,2]
[404238802,1769991051050,-623.2480812,0.00036866,2]
[404238803,1769991051060,-610.4426866,0.00036866,2]
[404238804,1769991051070,-621.671218,0.00036866,31]
[404238805,1769991051079,-621.671218,0.00036866,31]
[404238806,1769991051088,-621.671218,0.00036866,31]
[404238807,1769991051098,-621.671218,0.00036866,31]
[404238808,1769991051107,-621.671218,0.00036866,31]
[404238809,1769991051194,-621.671218,0.00036866,31]
[404238810,1769991051204,-621.671218,0.00036866,31]
[404238811,1769991051213,-621.671218,0.00036866,31]
[404238812,1769991051222,-151.0,0.00036866,31]
[404238813,1769991051232,-151.0,0.00036866,31]
[404238814,1769991051242,-151.0,0.00036866,31]
[404238815,1769991051251,-151.0,0.00036866,31]
[404238816,1769991051260,-151.0,0.00036866,31]
[404238817,1769991051270,-151.0,0.00036866,31]
[404238818,1769991051279,-151.0,0.00036866,31]
[404238819,1769991051290,-151.0,0.00036866,31]
[404238820,1769991051299,-151.0,0.00036866,31]
[404238821,1769991051308,-151.0,0.00036866,31]
[404238822,1769991051317,-174.798799,0.00036866,31]
[404238823,1769991051327,-174.798799,0.00036866,31]
[404238824,1769991051336,-174.798799,0.00036866,31]
[404238825,1769991051345,-174.798799,0.00036866,31]
[404238826,1769991051355,-174.798799,0.00036866,31]
[404238827,1769991051364,-174.798799,0.00036866,31]
[404238828,1769991051373,-174.798799,0.00036866,31]
[404238829,1769991051384,-174.798799,0.00036866,31]
[404238830,1769991051393,-151.0,0.00036866,31]
[404238831,1769991051402,-151.0,0.00036866,31]
[404238832,1769991051411,-151.0,0.00036866,31]
[404238833,1769991051420,-151.0,0.00036866,31]
[404238834,1769991051431,-151.0,0.00036866,31]
[404238835,1769991051440,-151.0,0.00036866,31]
[404238836,1769991051451,-222.938564,0.00036866,31]
[404238837,1769991051460,-222.938564,0.00036866,31]
[404238838,1769991051469,-222.938564,0.00036866,31]
[404238839,1769991051479,-222.938564,0.00036866,31]
[404238840,1769991051488,-222.938564,0.00036866,31]
[404238841,1769991051498,-222.938564,0.00036866,31]
[404238842,1769991051511,-835.283825,0.00036866,31]
[404238843,1769991051520,-835.283825,0.00036866,31]
[404238844,1769991051530,-222.938564,0.00036866,31]
[404238845,1769991051539,-222.938564,0.00036866,31]
[404238846,1769991051548,-835.283825,0.00036866,31]
[404238847,1769991051557,-835.283825,0.00036866,31]
[404238848,1769991051567,-835.283825,0.00036866,31]
[404238849,1769991051586,-835.283825,0.00036866,31]
[404238850,1769991051596,-476.23061777,0.00036866,31]
[404238863,1769991946209,-740.74221401,0.00035202,2]
[404238864,1769991946230,-53.6121293,0.00035311,2]
[404238868,1769992030103,-430.80913192,0.00035206,2]
[404238874,1769992128548,-2199.76493649,0.0001747,2]
[404238875,1769992128606,-3943.99998991,0.0001747,2]
[404238911,1769992232287,-1656.48013711,0.0001747,2]
[404238913,1769992232297,-677.0,0.0001747,2]
[404238915,1769992232307,-7813.11961086,0.00018,2]
[404238917,1769992232317,-740.74221401,0.00022741,2]
[404238918,1769992232326,-466.59593444,0.00024,2]
[404238920,1769992232337,-3986.33981871,0.0002465,2]
[404238922,1769992232347,-132279.53991902,0.00035,2]
[404238925,1769992232358,-1541.91337348,0.00035,2]
[404239012,1769992246063,-5000.0,0.0003465,2]
[404239013,1769992246072,-350.14559452,0.00034999,7]
[404239014,1769992246082,-329.14290819,0.00034999,7]
[404239015,1769992246093,-180.48778238,0.00034999,7]
[404239016,1769992246102,-378150.57925209,0.00035,2]
[404239018,1769992246112,-640.33,0.00035,30]
[404239020,1769992246121,-5244.48,0.00035,14]
[404239022,1769992246130,-519.42124826,0.00035048,2]
[404239024,1769992246139,-173.234,0.00035999,43]
[404239026,1769992246148,-56673.0719077,0.00036,2]
[404239028,1769992246157,-179.0,0.000362,2]
[404239029,1769992246167,-664.9629489,0.00036791,2]
[404239031,1769992246176,-500.0,0.0003686,13]
[404239033,1769992246185,-308.97,0.00036865,20]
[404239034,1769992246194,-3433.85061058,0.00036865,20]
[404239035,1769992246203,-2201.3665096,0.00036865,20]
[404239036,1769992246212,-780.0,0.000369,2]
[404239037,1769992246223,-390.6306089,0.000369,2]
[404239038,1769992246235,-2044.48449799,0.00037,2]
[404239039,1769992246244,-1328.75627604,0.00037,20]
[404239040,1769992246253,-168.0,0.00037168,2]
[404239041,1769992246263,-10784.25640432,0.00037262,2]
[404239045,1769992247250,-12244.65374164,0.00037262,2]
[404239046,1769992247260,-500.0,0.00037282,7]
[404239047,1769992247271,-500.0,0.00037282,10]
[404239048,1769992247281,-500.0,0.00037282,7]
[404239049,1769992247290,-154.35,0.00037282,2]
[404239050,1769992247299,-253.0,0.00037357,20]
[404239051,1769992247309,-990.0,0.00037359,120]
[404239052,1769992247318,-1150.869244,0.0003736,11]
[404239053,1769992247327,-1000.0,0.0003738,11]
[404239054,1769992247336,-1000.0,0.000374,11]
[404239055,1769992247344,-208.0,0.00037401,2]
[404239056,1769992247353,-208.0,0.00037411,2]
[404239057,1769992247362,-208.0,0.00037411,2]
[404239058,1769992247371,-308.97,0.00037413,22]
[404239059,1769992247380,-1000.0,0.0003742,11]
[404239060,1769992247390,-1000.0,0.0003744,11]
[404239061,1769992247399,-1000.0,0.0003746,11]
[404239062,1769992247407,-1000.0,0.0003748,11]
[404239063,1769992247416,-600.0,0.00037495,30]
[404239064,1769992247425,-200.0,0.000375,120]
[404239065,1769992247434,-161.46887459,0.000375,120]
[404239066,1769992247443,-1000.0,0.000375,11]
[404239067,1769992247452,-1000.0,0.0003752,11]
[404239068,1769992247461,-1000.0,0.0003754,11]
[404239069,1769992247470,-1000.0,0.0003756,11]
[404239070,1769992247479,-168.0,0.00037561,2]
[404239071,1769992247488,-1000.0,0.0003758,11]
[404239072,1769992247497,-1216.811541,0.0003758,11]
[404239073,1769992247506,-3549.22,0.0003759,20]
[404239074,1769992247515,-272.59666,0.000376,120]
[404239075,1769992247524,-1000.0,0.000376,11]
[404239076,1769992247533,-70.03060303,0.000376,11]
[404239077,1769992247544,-929.96939697,0.000376,11]
[404239078,1769992247553,-2352.0,0.00037608,20]
[404239079,1769992247562,-27.31900184,0.0003763,7]
[404239083,1769992715042,323.999999,0.0003,120]
[404239084,1769992967042,400.0,0.0003,120]
[404239085,1769993005143,900.0,0.0003,120]
[404239087,1769993119845,342.0,0.0003,120]
[404239088,1769993149127,-698.47956876,0.00019406,2]
[404239089,1769993149149,-991.25119025,0.00019602,2]
[404239090,1769993225120,-698.47956876,0.00019602,2]
[404239146,1769993432468,-1283.01135117,0.00019212,2]
[404239192,1769993435452,272.59666,0.00027,120]
[404240060,1769993447031,-3716.98864883,0.00019212,2]
[404240062,1769993447040,-150.0,0.00019604,2]
[404240064,1769993447049,-370.0,0.0002,5]
[404240065,1769993447058,-177.0,0.00021604,2]
[404240067,1769993447067,-150.0,0.0002233,30]
[404240069,1769993447079,-204.0,0.00023604,2]
[404240071,1769993447088,-150.0,0.00024722,30]
[404240073,1769993447097,-231.0,0.00025604,2]
[404240075,1769993447106,-162.79050748,0.000269,20]
[404240077,1769993447115,-150.0,0.00027115,30]
[404240078,1769993447124,-258.0,0.00027604,2]
[404240080,1769993447133,-150.0,0.00029507,30]
[404240082,1769993447142,-285.0,0.00029604,2]
[404240084,1769993447151,-400.0,0.000314,120]
[404240086,1769993447160,-150.0,0.000319,30]
[404240087,1769993447169,-400.0,0.00032,120]
[404240089,1769993447179,-250.41601471,0.00033272,2]
[404240091,1769993447187,-400.0,0.00034,120]
[404240093,1769993447196,-150.0,0.00034292,30]
[404240095,1769993447205,-200.0,0.000348,120]
[404240097,1769993447214,-168.0,0.0003591,2]
[404240099,1769993447223,-400.0,0.00036,120]
[404240100,1769993447232,-9554.3127926,0.00036258,2]
[404240102,1769993447241,-297.19,0.00036663,20]
[404240104,1769993447250,-500.0,0.00036663,7]
[404240106,1769993447258,-325.25497487,0.00036663,15]
[404240108,1769993447267,-500.0,0.00036663,15]
[404240110,1769993447276,-500.0,0.00036663,15]
[404240111,1769993447285,-244.7542082,0.00036663,7]
[404240113,1769993447295,-372.71074942,0.00036663,15]
[404240115,1769993447304,-4819.3919231,0.00036664,2]
[404240117,1769993447313,-183.9702393,0.00036664,2]
[404240119,1769993447322,-154.49,0.00036684,30]
[404240121,1769993447332,-1000.0,0.000367,22]
[404240123,1769993447344,-161.0,0.000368,120]
[404240125,1769993447353,-180.5,0.00036863,46]
[404240127,1769993447362,-605.6366676,0.00036864,2]
[404240129,1769993447371,-605.6366676,0.00036864,2]
[404240131,1769993447381,-605.6366676,0.00036864,2]
[404240133,1769993447390,-227.9057483,0.00036864,2]
[404240134,1769993447399,-2000.0,0.00036864,20]
[404240136,1769993447408,-200.0,0.00037,120]
[404240138,1769993447418,-390.0,0.000371,2]
[404240140,1769993447426,-557.24540545,0.00037155,2]
[404240142,1769993447435,-297.19,0.00037211,22]
[404240144,1769993447444,-150.62457435,0.00037262,2]
[404240146,1769993447454,-501.18727352,0.00037279,14]
[404240148,1769993447463,-500.0,0.00037324,14]
[404240149,1769993447472,-161.46887459,0.000375,120]
[404240151,1769993447481,-161.0,0.000375,120]
[404240153,1769993447489,-199.058295,0.000376,2]
[404240155,1769993447499,-1000.0,0.00037611,30]
[404240157,1769993447508,-275.48099816,0.0003763,7]
[404240159,1769993447517,-168.0,0.0003768,2]
[404240161,1769993447526,-168.0,0.00037746,2]
[404240162,1769993447535,-297.19,0.00037759,24]
[404240164,1769993447544,-234.092591,0.00037774,2]
[404240166,1769993447554,-400.0,0.00038,120]
[404240168,1769993447567,-168.0,0.00038099,2]
[404240170,1769993447578,-740.74221401,0.0003826,2]
[404240172,1769993447587,-297.19,0.00038307,26]
[404240174,1769993447596,-150.0,0.00038356,5]
[404240176,1769993447606,-161.46887459,0.000387,120]
[404240178,1769993447616,-297.19,0.00038855,28]
[404240179,1769993447626,-250.0,0.00038904,5]
[404240181,1769993447638,-5023.11610571,0.00039,120]
[404240183,1769993447647,-200.0,0.00039,120]
[404240185,1769993447656,-176.57,0.00039077,30]
[404240187,1769993447665,-297.19,0.00039403,30]
[404240189,1769993447675,-350.0,0.00039452,5]
[404240191,1769993447684,-161.46887459,0.000398,120]
[404240193,1769993447693,-202.15552574,0.000399,2]
[404240195,1769993447703,-297.19,0.00039951,32]
[404240196,1769993447712,-740.74221401,0.0004,3]
[404240198,1769993447722,-158.73437599,0.0004,120]
[404240200,1769993447731,-300.0,0.0004,120]
[404240202,1769993447740,-400.0,0.0004,120]
[404240204,1769993447749,-501.03327419,0.0004,5]
[404240206,1769993447758,-600.0,0.00040494,60]
[404240208,1769993447770,-297.19,0.00040499,34]
[404240210,1769993447779,-4819.3919231,0.00040692,2]
[404240212,1769993447788,-300.0,0.00041,120]
[404240213,1769993447798,-297.19,0.00041047,36]
[404240215,1769993447807,-596.9,0.00041096,120]
[404240217,1769993447817,-223.55,0.00041096,120]
[404240219,1769993447827,-204.64663654,0.00041096,2]
[404240221,1769993447835,-378.0963672,0.00041345,30]
[404240223,1769993447844,-230.40003573,0.00041367,31]
[404240225,1769993447853,-382.10916176,0.00041367,31]
[404240227,1769993447862,-200.0,0.000414,120]
[404240228,1769993447872,-198.64,0.00041469,30]
[404240230,1769993447882,-297.19,0.00041595,38]
[404240232,1769993447891,-200.0,0.00041609,120]
[404240234,1769993447901,-300.0,0.00042,120]
[404240236,1769993447910,-200.0,0.00042,120]
[404240238,1769993447919,-297.19,0.00042143,40]
[404240240,1769993447927,-297.19,0.00042691,42]
[404240242,1769993447936,-300.0,0.00043,120]
[404240243,1769993447946,-297.19,0.00043239,44]
[404240245,1769993447957,-232.74,0.0004353,120]
[404240247,1769993447967,-1238.21400182,0.00043562,120]
[404240249,1769993447977,-200.0,0.00043691,120]
[404240251,1769993447986,-297.19,0.00043787,46]
[404240253,1769993447995,-192.75654539,0.000438,30]
[404240255,1769993448004,-220.71,0.00043862,30]
[404240257,1769993448014,-300.0,0.00044,120]
[404240259,1769993448023,-200.0,0.00044,120]
[404240261,1769993448032,-297.19,0.00044335,48]
[404240262,1769993448041,-200.0,0.000444,120]
[404240264,1769993448050,-720.0,0.00044543,60]
[404240266,1769993448059,-200.0,0.00044644,120]
[404240268,1769993448068,-4819.3919231,0.0004472,2]
[404240270,1769993448077,-297.19,0.00044883,50]
[404240272,1769993448086,-368.63631313,0.000449,120]
[404240274,1769993448095,-882.68024102,0.00045,20]
[404240275,1769993448104,-470.15982431,0.00045,120]
[404240277,1769993448113,-406.6202891,0.00045,30]
[404240279,1769993448122,-330.96484713,0.00045,120]
[404240281,1769993448131,-232.49182993,0.00045,120]
[404240283,1769993448140,-300.0,0.00045,120]
[404240285,1769993448149,-200.0,0.00045055,120]
[404240286,1769993448158,-512.0802265,0.000454,120]
[404240288,1769993448167,-297.19,0.0004543,52]
[404240290,1769993448176,-200.0,0.00045563,120]
[404240292,1769993448184,-234.092591,0.00045725,2]
[404240294,1769993448193,-297.19,0.00045978,54]
[404240296,1769993448203,-367.36914941,0.00046,30]
[404240298,1769993448212,-300.0,0.00046,120]
[404240299,1769993448223,-200.0,0.00046,120]
[404240301,1769993448232,-226.49968087,0.00046027,2]
[404240303,1769993448241,-297.19,0.00046526,56]
[404240305,1769993448251,-235.71305745,0.00047,120]
[404240307,1769993448260,-300.0,0.00047,120]
[404240309,1769993448270,-297.19,0.00047074,58]
[404240311,1769993448279,-449.59,0.00047096,12]
[404240313,1769993448287,-3181.16,0.00047396,120]
[404240315,1769993448297,-400.0,0.0004755,120]
[404240317,1769993448305,-297.19,0.00047622,60]
[404240319,1769993448315,-3181.16,0.00047674,120]
[404240320,1769993448324,-3181.16,0.00047952,120]
[404240322,1769993448334,-410.22957715,0.00048,120]
[404240324,1769993448343,-158.71877617,0.00048,120]
[404240326,1769993448352,-300.0,0.00048,120]
[404240328,1769993448361,-200.0,0.00048,120]
[404240330,1769993448370,-297.19,0.0004817,62]
[404240332,1769993448379,-151.07,0.00048175,14]
[404240333,1769993448388,-990.0,0.00048183,120]
[404240335,1769993448397,-3181.16,0.0004823,120]
[404240337,1769993448406,-3181.16,0.00048509,120]
[404240339,1769993448416,-200.0,0.00048562,120]
[404240341,1769993448426,-297.19,0.00048718,64]
[404240343,1769993448435,-4819.3919231,0.00048748,2]
[404240345,1769993448445,-3181.16,0.00048787,120]
[404240346,1769993448455,-864.0,0.00048998,120]
[404240348,1769993448464,-316.89428754,0.00049,15]
[404240350,1769993448473,-300.0,0.00049,120]
[404240352,1769993448483,-3181.16,0.00049065,120]
[404240354,1769993448493,-297.345567,0.00049266,66]
[404240356,1769993448502,-291.01731986,0.00049315,120]
[404240358,1769993448511,-299.0,0.00049315,120]
[404240360,1769993448521,-299.0,0.00049315,120]
[404240362,1769993448530,-299.0,0.00049315,120]
[404240364,1769993448539,-299.0,0.00049315,120]
[404240365,1769993448548,-299.0,0.00049315,120]
[404240367,1769993448559,-299.0,0.00049315,120]
[404240369,1769993448570,-299.0,0.00049315,120]
[404240371,1769993448581,-299.0,0.00049315,120]
[404240373,1769993448590,-299.0,0.00049315,120]
[404240375,1769993448601,-299.0,0.00049315,120]
[404240377,1769993448610,-299.0,0.00049315,120]
[404240379,1769993448619,-299.0,0.00049315,120]
[404240381,1769993448628,-299.0,0.00049315,120]
[404240383,1769993448639,-299.0,0.00049315,120]
[404240385,1769993448648,-299.0,0.00049315,120]
[404240386,1769993448656,-299.0,0.00049315,120]
[404240388,1769993448665,-299.0,0.00049315,120]
[404240390,1769993448673,-299.0,0.00049315,120]
[404240392,1769993448682,-299.0,0.00049315,120]
[404240394,1769993448691,-299.0,0.00049315,120]
[404240396,1769993448700,-299.0,0.00049315,120]
[404240398,1769993448709,-299.0,0.00049315,120]
[404240400,1769993448717,-299.0,0.00049315,120]
[404240401,1769993448727,-299.0,0.00049315,120]
[404240403,1769993448735,-299.0,0.00049315,120]
[404240405,1769993448744,-299.0,0.00049315,120]
[404240407,1769993448754,-299.0,0.00049315,120]
[404240409,1769993448762,-299.0,0.00049315,120]
[404240410,1769993448772,-299.0,0.00049315,120]
[404240412,1769993448780,-299.0,0.00049315,120]
[404240414,1769993448789,-299.0,0.00049315,120]
[404240416,1769993448798,-299.0,0.00049315,120]
[404240418,1769993448807,-299.0,0.00049315,120]
[404240420,1769993448815,-299.0,0.00049315,120]
[404240422,1769993448824,-299.0,0.00049315,120]
[404240424,1769993448835,-299.0,0.00049315,120]
[404240426,1769993448843,-299.0,0.00049315,120]
[404240427,1769993448854,-299.0,0.00049315,120]
[404240428,1769993448863,-299.0,0.00049315,120]
[404240429,1769993448872,-299.0,0.00049315,120]
[404240430,1769993448881,-299.0,0.00049315,120]
[404240431,1769993448889,-299.0,0.00049315,120]
[404240432,1769993448898,-299.0,0.00049315,120]
[404240433,1769993448907,-3181.16,0.00049343,120]
[404240434,1769993448915,-200.0,0.00049422,120]
[404240435,1769993448924,-3181.16,0.00049621,120]
[404240436,1769993448933,-3181.16,0.00049899,120]
[404240437,1769993448942,-225.07739433,0.0005,20]
[404240438,1769993448950,-539.17140554,0.0005,10]
[404240439,1769993448959,-199.0,0.0005,7]
[404240440,1769993448968,-272.72755218,0.0005,120]
[404240441,1769993448976,-278.83864138,0.0005,120]
[404240442,1769993448985,-381.01129916,0.0005,120]
[404240443,1769993448993,-500.53223869,0.0005,120]
[404240444,1769993449002,-643.28392069,0.0005,120]
[404240445,1769993449011,-153.69623985,0.0005,120]
[404240446,1769993449020,-275.57722194,0.0005,120]
[404240448,1769993449105,-495.07187624,0.0005,30]
[404240449,1769993449115,-371.30400471,0.0005,120]
[404240450,1769993449124,-203.0,0.0005,120]
[404240452,1769993449133,-300.0,0.0005,120]
[404240453,1769993449142,-200.0,0.0005,120]
[404240455,1769993449151,-164.0,0.0005,120]
[404240457,1769993449160,-200.0,0.00050104,120]
[404240459,1769993449169,-200.0,0.0005014,120]
[404240461,1769993449178,-658.45465986,0.00050178,120]
[404240467,1769993449222,-2522.70534014,0.00050178,120]
[404240469,1769993449231,-203.0,0.000504,120]
[404240471,1769993449239,-3181.16,0.00050456,120]
[404240473,1769993449249,-206.54080034,0.000505,60]
[404240475,1769993449258,-3181.16,0.00050734,120]
[404240477,1769993449266,-203.0,0.000508,120]
[404240479,1769993449275,-409.10460875,0.0005099,90]
[404240481,1769993449284,-70.80845074,0.00051,120]
[404240609,1769993543002,-500.0,0.00013273,2]
[404240610,1769993543022,-1000.0,0.00013821,2]
[404240611,1769993543043,-500.00819907,0.00014368,2]
[404240612,1769993544994,-300.0,0.00014368,2]
[404240613,1769993547106,-307.83078675,0.00014368,2]
[404240614,1769993549520,-151.75939226,0.00014368,2]
[404240615,1769993552329,-240.40162192,0.00014368,2]
[404240616,1769993552351,-59.59837808,0.00014916,2]
[404240617,1769993555589,-541.78421547,0.00014916,2]
[404240618,1769994334125,-1746.20424664,0.00013009,2]
[404240619,1769994442945,-800.00610746,0.00012879,2]
[404240620,1769994451113,-1359.19660956,0.00012879,2]
[404240642,1769994631603,-674.76220887,0.0001275,2]
[404240643,1769994631615,-1496.8897785,0.0001275,2]
[404240644,1769994631627,-440.41335325,0.0001275,2]
[404240645,1769994631639,-643.77140468,0.0001275,2]
[404240686,1769994637715,-1744.1632547,0.0001275,2]
[404240688,1769994637724,-150.0,0.00013011,2]
[404240690,1769994637734,-610.14150845,0.00013273,2]
[404240692,1769994637744,-500.0,0.00013273,2]
[404240694,1769994637754,-898.61740645,0.00013821,2]
[404240696,1769994637763,-177.0,0.00015011,2]
[404240697,1769994637773,-204.0,0.00017011,2]
[404240699,1769994637782,-303.10001603,0.000189,2]
[404240701,1769994637791,-231.0,0.00019011,2]
[404240703,1769994637799,-298.49895741,0.00019089,2]
[404240705,1769994637809,-740.74221401,0.00023488,2]
[404240706,1769994637818,-200.0,0.00035,120]
[404240709,1769994637827,-180.381,0.0003508,2]
[404240710,1769994637836,-150.0,0.000368,29]
[404240712,1769994637846,-579.16552681,0.00036867,14]
[404240714,1769994637855,-295.0,0.00036867,2]
[404240717,1769994637865,-373.14223868,0.00036867,7]
[404240719,1769994637879,-126.85776132,0.00036867,7]
[404240721,1769994637889,-500.0,0.00036867,2]
[404240723,1769994637902,-488.92,0.00036867,7]
[404240725,1769994637911,-2000.0,0.00036867,20]
[404240727,1769994637921,-150.04450375,0.00037262,2]
[404240729,1769994637931,-161.46887459,0.000375,120]
[404240731,1769994637943,-189.77883205,0.0003763,14]
[404240733,1769994637952,-179.0,0.0003808,2]
[404240735,1769994637961,-212.7,0.0003871,30]
[404240737,1769994637971,-200.0,0.0004,120]
[404240739,1769994637982,-212.7,0.00040554,30]
[404240741,1769994637991,-179.0,0.0004108,2]
[404240743,1769994638001,-150.04450375,0.00049416,2]
[404240745,1769994638010,-1220.899847,0.0004978,21]
[404240747,1769994638019,-1000.0,0.000498,22]
[404240749,1769994638028,-500.0,0.00049819,120]
[404240751,1769994638037,-500.0,0.00049819,120]
[404240753,1769994638046,-390.09708382,0.00049819,31]
[404240755,1769994638056,-382.46527855,0.00049819,7]
[404240757,1769994638067,-117.53472145,0.00049819,7]
[404240759,1769994638077,-496.88120316,0.00049819,120]
[404240761,1769994638087,-456.24929637,0.00049819,120]
[404240763,1769994638096,-305.11572693,0.00049819,7]
[404240765,1769994638106,-500.0,0.00049819,120]
[404240767,1769994638115,-500.0,0.00049819,120]
[404240769,1769994638127,-500.0,0.00049819,120]
[404240771,1769994638136,-180.5,0.0004982,88]
[404240773,1769994638145,-1000.0,0.0004982,22]
[404240775,1769994638154,-403.67546848,0.0004984,22]
[404240938,1769994640003,-258.0,0.00021011,2]
[404240941,1769994640014,-285.0,0.00023011,2]
[404240942,1769994640023,-188.84737859,0.00025011,2]
[404240945,1769994640033,-181.96,0.0004,120]
[404240947,1769994640042,-181.96,0.00042,120]
[404240950,1769994640052,-596.32453152,0.0004984,22]
[404240953,1769994640062,-1000.0,0.0004986,22]
[404240956,1769994640071,-1000.0,0.0004988,22]
[404240958,1769994640081,-151.0,0.00049898,20]
[404240960,1769994640090,-1000.0,0.000499,22]
[404240962,1769994640099,-1000.0,0.0004992,22]
[404240964,1769994640108,-1000.0,0.0004994,22]
[404240966,1769994640117,-10.6364997,0.0004996,22]
[404240977,1769994640216,-2e-08,0.0004996,22]
[404240979,1769994640227,-989.36350028,0.0004996,22]
[404240981,1769994640236,-158.16556965,0.0004998,22]
[404241354,1769994643931,-181.96,0.000441,120]
[404241356,1769994643943,-841.83443035,0.0004998,22]
[404241358,1769994643952,-1216.811541,0.0004998,22]
[404241360,1769994643961,-1957.856,0.00049999,30]
[404241362,1769994643970,-1000.0,0.0005,22]
[404241364,1769994643980,-1000.0,0.0005,22]
[404241366,1769994643989,-213.0,0.0005,120]